[Event "Israeli Team-ch 2023"]
[Site "Petah Tikva"]
[Date "2023.05.12"]
[Round "11.4"]
[White "Postny, Evgeny"]
[Black "Kuprijanov, Anatoly"]
[Result "1-0"]
[ECO "D20"]
[WhiteElo "2556"]
[BlackElo "2270"]
[Annotator "TA"]
[PlyCount "57"]
[EventDate "2023.01.13"]
[EventCountry "ISR"]
[SourceTitle "playchess.com"]
[Source "ChessBase"]
[SourceQuality "1"]
[TimeControl "40/5400+30:1800+30"]

{[%evp 13,57,39,57,0,0,0,22,-6,48,54,78,72,100,87,82,73,87,33,112,69,76,68,84,52,82,72,82,62,504,497,495,495,445,447,418,273,719,741,1378,1331,1319,1252,2055,940,29993,29994]} 1. d4 {[%emt 0:00:04]} d5 {[%emt 0:01:08]} 2. c4 {[%emt 0:00:07]} dxc4 {[%emt 0:00:48]} 3. e4 {[%emt 0:00:31]} e5 {[%emt 0:00:50]} 4. Nf3 {[%emt 0:00:10]} exd4 {[%emt 0:00:48]} 5. Bxc4 {[%emt 0:00:08]} Bb4+ {[%emt 0:00:07]} 6. Nbd2 {[%emt 0:01:00]} Nc6 {[%emt 0:00:49]} 7. O-O {[%emt 0:01:58]} Qf6 {[%emt 0:09:12]} 8. Qb3 {[%emt 0:24:38][%mdl 1024] White has compensation. D20: Queen's Gambit Accepted: 3 e3 and 3 e4.} (8. e5 $5 {[%cal Re5f6]} Qg6 9. Nb3 $11) 8... Nge7 {[%emt 0:07:41]} 9. e5 {[%emt 0:04:44]} Qg6 {[%emt 0:00:19]} (9... Nxe5 $2 10. Qxb4 N5c6 11. Qa3 $18) 10. Bd3 {[%emt 0:04:01] The position is equal.} (10. Nxd4 Nxd4 11. Qxb4 Nc2 12. Qa4+ Nc6 $17) (10. Nh4 $5 {[%cal Rh4g6]} Qh5 11. Ndf3 $11) 10... Qh5 {[%emt 0:08:58]} ({Black should play} 10... Be6 $11) 11. Ne4 $1 $14 {[%emt 0:03:50] [#] And now Ng3 would win.} O-O $146 {[%emt 0:19:33]} (11... Nxe5 $2 12. Nxe5 (12. Nxd4 Nxd3 13. Qxd3 O-O $17) (12. Qxb4 Nxf3+ 13. gxf3 Qxf3 $16) 12... Qxe5 13. Qxb4 $18) ({Predecessor:} 11... Be6 12. Qa4 Bd5 13. h3 Bxe4 14. Bxe4 Bc5 15. b4 Bb6 16. Bg5 Rb8 17. Rae1 a6 18. Kh2 O-O 19. g4 {1-0 Ivanisevic,I (2648)-Slingerland,F (2415) Sarajevo Bosna op 41st 2011 (6)}) 12. Ng3 {[%emt 0:11:36]} (12. a3 $5 Ba5 $8 13. Ng3 $11) 12... Qg4 {[%emt 0:00:18]} 13. h3 {[%emt 0:00:19]} Qd7 {[%emt 0:02:29]} 14. a3 {[%emt 0:08:33]} Ba5 {[%emt 0:00:55]} 15. Nh5 {[%emt 0:00:27]} (15. Ng5 $16 Qe8 16. Nxh7 (16. Bxh7+ Kh8 $16)) 15... Kh8 {[%emt 0:12:54]} ({Black should try} 15... Qd5 $14 16. Bc4 Qd8) 16. Qc2 {[%emt 0:21:43] White is much more active. The black rooks are badly placed.} Ng6 {[%emt 0:09:57]} 17. b4 $36 {[%emt 0:00:53][%mdl 2048] White has some pressure.} Bb6 {[%emt 0:00:57]} 18. Re1 {[%emt 0:00:42][%cal Oh5g7]} Re8 {[%emt 0:05:08][%cal Rg6e5] [#]} 19. Nxg7 $1 {[%emt 0:06:37]} Kxg7 {[%emt 0:01:25]} 20. Qd2 $1 {[%emt 0:00:05] Qh6+ is the strong threat.} Ncxe5 $2 {[%emt 0:10:10][%mdl 8192] Black cannot hold the game after this.} (20... Kg8 $14 21. Qh6 f5 22. Bc4+ Re6) 21. Nxe5 $18 {[%emt 0:01:34]} Qd6 {[%emt 0:02:35] [#]} 22. Qh6+ $1 {[%emt 0:01:48]} ({Stronger than} 22. Bxg6 fxg6 23. Nc4 (23. Qf4 Bf5 $15) 23... Rxe1+ 24. Qxe1 Qe6 $11) 22... Kg8 {[%emt 0:00:04] [#]} 23. Bf4 $1 {[%emt 0:02:03] Threatening mate with Nxg6.} Qf8 {[%emt 0:01:58] Strongly threatening ...Qxh6.} 24. Qh5 {[%emt 0:03:39]} Be6 $2 {[%emt 0:00:54]} (24... Re6 25. Nxg6 hxg6) 25. Bh6 {[%emt 0:00:26]} Qd6 {[%emt 0:01:44]} 26. Nxg6 {[%emt 0:00:15]} hxg6 {[%emt 0:00:16] [#]} 27. Bxg6 $1 {[%emt 0:00:05][%cal Oh5g5][%mdl 512] Qg5! would kill now.} Bc4 {[%emt 0:01:25] [#]} (27... d3 28. Bh7+) 28. Bh7+ $1 {[%emt 0:01:14][%mdl 512]} Kh8 {[%emt 0:00:05]} (28... Kxh7 29. Bf8+) 29. Bf5 {[%emt 0:00:41] A superb game by Postny.   Weighted Error Value: White=0.25 (precise) /Black=0.69} 1-0

[Event "Israeli Team-ch 2023"]
[Site "Petah Tikva"]
[Date "2023.05.12"]
[Round "11.5"]
[White "Polyakov, Alex"]
[Black "Kobo, Ori"]
[Result "0-1"]
[ECO "A48"]
[WhiteElo "2214"]
[BlackElo "2546"]
[Annotator "TA"]
[PlyCount "124"]
[EventDate "2023.01.13"]
[EventCountry "ISR"]
[SourceTitle "playchess.com"]
[Source "ChessBase"]
[SourceQuality "1"]
[TimeControl "40/5400+30:1800+30"]

{[%evp 12,123,8,-10,26,6,13,11,5,0,0,-7,6,7,5,0,0,0,0,-11,0,-14,-13,-14,-5,-84,-79,-77,-77,-77,-77,-77,-77,-77,-77,-77,-77,-77,-77,-77,-77,-77,-77,-77,-70,-72,-70,-77,-77,-82,-72,-89,-33,-56,-56,-56,-56,-56,-56,-56,-33,-33,-33,-56,-56,-56,0,-26,-26,-64,0,0,0,0,0,-8,0,0,0,-8,0,0,0,-8,-8,-8,-8,-764,-764,-764,-758,-708,-708,-29960,-697,-29977,-29978,-29978,-29979,-29979,-29976,-29973,0,-29979,-29980,-29980,-29981,-29983,-29984,-29984,-29985,-29989,-29990,-29990]} 1. d4 {[%emt 0:00:05]} Nf6 {[%emt 0:00:35]} 2. Nf3 {[%emt 0:00:13]} g6 {[%emt 0:01:14]} 3. c3 {[%emt 0:00:27]} Bg7 {[%emt 0:00:40]} 4. Bf4 {[%emt 0:00:03]} O-O {[%emt 0:01:13]} 5. Nbd2 {[%emt 0:00:18]} d6 {[%emt 0:00:36]} 6. e4 {[%emt 0:00:09]} Nbd7 {[%emt 0:03:00]} 7. h3 {[%emt 0:00:13]} Qe8 {[%emt 0:02:17] A48: 1 d4 Nf6 2 Nf3 g6: Torre, London and Colle Systems.} 8. Qc2 {[%emt 0:00:31]} e5 {[%emt 0:01:51]} 9. dxe5 {[%emt 0:00:10]} Nxe5 {[%emt 0:06:23] [#] The position is equal.} 10. Be2 $146 {[%emt 0:01:10]} ({Predecessor:} 10. Nxe5 dxe5 11. Be3 b6 12. Bd3 Nh5 13. O-O f5 14. Bc4+ Kh8 15. Bd5 Rb8 16. f3 {0-1 Mahitosh,D (2176)-Sychev,K (2552) Titled Tuesday intern op 06th Sep Early blitz 2022 (4)}) 10... Nxf3+ {[%emt 0:09:01]} 11. Bxf3 {[%emt 0:00:20]} Bd7 {[%emt 0:03:22]} 12. O-O {[%emt 0:01:12]} Ba4 {[%emt 0:00:37]} 13. b3 {[%emt 0:03:29]} Bc6 {[%emt 0:00:36]} 14. Rfe1 {[%emt 0:03:15]} Nd7 {[%emt 0:01:21]} 15. Nc4 {[%emt 0:26:41]} a5 {[%emt 0:11:15]} 16. Rad1 {[%emt 0:13:22]} Qe7 {[%emt 0:02:40]} 17. Qd2 {[%emt 0:11:27]} Rfe8 {[%emt 0:02:30]} 18. Bg5 {[%emt 0:06:37] [#]} (18. e5 $11 {keeps the balance.} Bxe5 19. Bxe5 Nxe5 20. Bxc6 bxc6 21. Qd4) 18... Bxc3 $1 $17 {[%emt 0:03:44][%mdl 64] Deflection} 19. Qxc3 {[%emt 0:08:04]} Qxg5 {[%emt 0:00:10]} 20. e5 {[%emt 0:00:25]} Nxe5 {[%emt 0:08:29]} (20... dxe5 $2 21. Bxc6 (21. Nxa5 Bxf3 22. Qxf3 Nc5 $17) 21... bxc6 22. Rxd7 $18) 21. Nxe5 {[%emt 0:00:19]} Rxe5 {[%emt 0:00:46]} 22. Rxe5 {[%emt 0:04:50]} Qxe5 {[%emt 0:01:15]} ({Reject} 22... dxe5 23. Bxc6 bxc6 24. Qxc6 $11) 23. Qxe5 {[%emt 0:00:03]} dxe5 {[%emt 0:00:07]} 24. Bxc6 {[%emt 0:00:07]} bxc6 {[%emt 0:00:02][%mdl 4096] Endgame KR-KR} 25. Rd7 {[%emt 0:00:09]} a4 {[%emt 0:15:52]} 26. Rxc7 {[%emt 0:01:50]} axb3 {[%emt 0:00:36]} 27. axb3 {[%emt 0:00:02]} Ra1+ {[%emt 0:02:59]} 28. Kh2 {[%emt 0:00:32]} Ra6 {[%emt 0:04:42]} 29. Rb7 {[%emt 0:02:15]} Ra2 {[%emt 0:03:12]} 30. f3 {[%emt 0:00:39]} Kg7 {[%emt 0:03:00]} 31. b4 {[%emt 0:00:24]} g5 {[%emt 0:04:51]} (31... Rb2 $17 32. Rb6 h5) 32. b5 {[%emt 0:03:24]} cxb5 {[%emt 0:00:17]} 33. Rxb5 {[%emt 0:00:02]} f6 {[%emt 0:01:57]} 34. Rb4 {[%emt 0:02:52] Prevents Ra4} Kg6 {[%emt 0:02:04]} 35. h4 $1 {[%emt 0:05:15]} gxh4 {[%emt 0:00:53]} 36. Rxh4 {[%emt 0:00:07]} h5 {[%emt 0:00:39]} 37. Rb4 {[%emt 0:00:11]} Kg5 {[%emt 0:02:58]} 38. Kg3 {[%emt 0:02:21]} f5 {[%emt 0:00:53]} ({Black should play} 38... Ra8 $15) 39. Kh3 {[%emt 0:03:12]} Ra3 {[%emt 0:00:50] Strongly threatening ...e4.} 40. Kh2 $1 {[%emt 0:01:12]} Re3 {[%emt 0:00:19]} (40... h4 $1 $15) 41. Rb8 $11 {[%emt 0:30:22]} Re2 {[%emt 0:09:17]} 42. Rg8+ {[%emt 0:00:00]} Kf4 {[%emt 0:00:22]} 43. Rf8 {[%emt 0:00:00]} Rb2 {[%emt 0:02:29]} 44. Rf7 {[%emt 0:00:00]} Rd2 {[%emt 0:05:04]} 45. Rf8 {[%emt 0:00:00]} h4 {[%emt 0:05:07]} 46. Rh8 {[%emt 0:00:00]} e4 {[%emt 0:02:19]} 47. fxe4 {[%emt 0:00:00]} fxe4 {[%emt 0:00:02]} 48. Rxh4+ {[%emt 0:00:00]} Ke3 {[%emt 0:00:52]} 49. Rh3+ $2 {[%emt 0:00:00][%mdl 8192] [#]} (49. Rh7 $11) 49... Kf2 $1 $19 {[%emt 0:01:45]} 50. Rh8 {[%emt 0:00:00] Prevents Rd8} e3 {[%emt 0:01:58]} 51. Rf8+ {[%emt 0:00:00]} Ke1 {[%emt 0:00:22] ( -> ...e2)} 52. Ra8 {[%emt 0:06:19]} Kf1 {[%emt 0:03:27]} (52... e2 $142 53. Kg3 Rd3+ 54. Kf4 Kf1 55. Re8 Rd8 {[%mdl 64] Promotion} 56. Rxd8 e1=Q 57. Rg8 Qf2+ 58. Ke4 Qh4+ 59. Kd5 Qf6 60. Re8 Qf5+ 61. Kd6 Kxg2 62. Rg8+ Kf3 63. Rd8 Qf6+ 64. Kc7 Ke4 65. Rd6 Qf7+ 66. Rd7 Qc4+ 67. Kb6 Qe6+ 68. Kc7 Ke5 69. Kd8 Qa6 70. Rf7 Ke6 71. Re7+ Kf6 72. Rd7 Qa5+ 73. Kc8 Ke6 74. Rb7 Qc5+ 75. Rc7 Qb5 76. Rb7 Qc6+ 77. Kb8 Kd6 78. Ka7 Qe8 79. Rb4 Kc5 80. Rb7 Qe4 81. Rc7+ Kd6 82. Kb8 Qe5 83. Rb7 Kc6+ 84. Ka8 Qa1+ 85. Kb8 Qa5 86. Rb1 Qc7+ 87. Ka8 Qh7 88. Rb8 Qf5 89. Rb2 Qa5+ 90. Kb8 Qe5+ 91. Ka7 Qxb2 92. Ka8 Qb7#) 53. Ra1+ {[%emt 0:00:10]} Kf2 {[%emt 0:00:11]} 54. Ra8 {[%emt 0:00:40]} e2 {[%emt 0:00:39]} 55. Rf8+ {[%emt 0:00:07]} Ke3 {[%emt 0:00:29]} 56. Re8+ {[%emt 0:00:23]} Kf2 {[%emt 0:01:36]} 57. Rf8+ $1 {[%emt 0:00:02] [#]} Ke1 $1 {[%emt 0:00:13] Black mates.} 58. Re8 {[%emt 0:01:50]} Kd1 {[%emt 0:01:20]} 59. Kh3 {[%emt 0:00:36]} e1=Q {[%emt 0:00:11]} 60. Rxe1+ {[%emt 0:00:02]} Kxe1 {[%emt 0:00:06]} 61. g4 {[%emt 0:00:33]} Kf2 {[%emt 0:00:27]} 62. Kh4 {[%emt 0:00:19]} Kf3 {[%emt 0:00:08] Weighted Error Value: White=0.42/Black=0.29 (precise)} 0-1

[Event "Israeli Team-ch 2023"]
[Site "Petah Tikva"]
[Date "2023.05.12"]
[Round "11.6"]
[White "Steinberg, Nitzan"]
[Black "Rahmilevitz, Anton"]
[Result "0-1"]
[ECO "B43"]
[WhiteElo "2537"]
[BlackElo "2250"]
[Annotator "TA"]
[PlyCount "88"]
[EventDate "2023.01.13"]
[EventCountry "ISR"]
[SourceTitle "playchess.com"]
[Source "ChessBase"]
[SourceQuality "1"]
[TimeControl "40/5400+30:1800+30"]

{[%evp 15,88,30,43,34,41,33,38,10,61,54,66,47,122,87,127,113,157,64,77,0,0,0,0,-42,-27,-57,-55,-52,-63,-52,-45,-202,-218,-211,-213,-252,-249,-238,-224,-409,-365,-481,-470,-553,-490,-676,-668,-619,-653,-734,-739,-815,-843,-802,-749,-957,-935,-895,-625,-619,-580,-543,-481,-491,-479,-497,-504,-636,-627,-620,-612,-746,-725,-899,-897]} 1. e4 {[%emt 0:00:06]} c5 {[%emt 0:00:10]} 2. Nf3 {[%emt 0:00:08]} e6 {[%emt 0:00:10]} 3. d4 {[%emt 0:00:20]} cxd4 {[%emt 0:00:12]} 4. Nxd4 {[%emt 0:00:06]} a6 {[%emt 0:00:09]} 5. Be2 {[%emt 0:00:27]} Nf6 {[%emt 0:00:19]} 6. Nc3 {[%emt 0:00:09]} Bb4 {[%emt 0:00:48]} 7. O-O {[%emt 0:04:22]} Qc7 {[%emt 0:04:59]} 8. Qd3 {[%emt 0:04:00]} O-O {[%emt 0:02:42]} 9. Bg5 {[%emt 0:08:04] B43: Sicilian: Kan Variation: 5 Nc3.} Be7 {[%emt 0:03:18][%cal Of6g4]} 10. f4 {[%emt 0:08:32]} d6 {[%emt 0:00:10]} 11. Kh1 {[%emt 0:02:37] White is slightly better.} (11. Rad1 $5 {[%cal Rd3g3]}) 11... Nbd7 {[%emt 0:06:23]} ({Black should play} 11... h6 $11 12. Bh4 Nc6) 12. Qg3 $1 $14 {[%emt 0:03:36]} Kh8 {[%emt 0:22:33]} 13. Rad1 {[%emt 0:09:32] [#]} Nc5 $146 {[%emt 0:17:07]} (13... h6 $14) ({Predecessor:} 13... Ng8 14. a4 Bxg5 15. fxg5 Ne5 16. Nf3 Bd7 17. Rd2 Bc6 18. Rfd1 Rfd8 19. h4 Be8 {0-1 Rechlis,G (2514)-Koch,J (2485) FRA-chT France 1999 (5)}) 14. Qh4 $1 $16 {[%emt 0:10:17]} Ng8 {[%emt 0:11:37] White must now prevent ...f6.} 15. Bxe7 {[%emt 0:04:47]} Nxe7 {[%emt 0:03:35]} 16. f5 {[%emt 0:00:47]} (16. b4 $1 $16 {[%cal Rb4c5]}) 16... f6 $14 {[%emt 0:01:53] [#]} 17. Rf3 {[%emt 0:08:44]} (17. fxe6 $1 $16 {Strongly threatening Nd5.} Nxe6 18. Nf5) 17... e5 $1 $11 {[%emt 0:06:08]} 18. Nb3 {[%emt 0:07:01]} (18. Rh3 $5 h6 $8 19. Nb3 $11) 18... b5 {[%emt 0:00:51] Dodges Bc4} 19. a3 {[%emt 0:02:31]} (19. Rh3 $5 h6 $8 20. Nxc5 Qxc5 21. Rg3 $11) 19... Bb7 {[%emt 0:00:35]} (19... Na4 $5) 20. Rh3 {[%emt 0:03:41][%csl Gh3][%cal Rh4h7]} h6 {[%emt 0:00:04]} 21. Qg4 {[%emt 0:02:08]} Rad8 {[%emt 0:00:39]} 22. Rg3 {[%emt 0:02:07][%csl Gg3][%cal Rg4g7]} Rg8 {[%emt 0:00:40]} 23. Bf3 $2 {[%emt 0:01:46] [#] This costs White the game.} (23. Nxc5 $15 dxc5 24. Rxd8 Qxd8 25. Rd3) 23... Na4 $1 $19 {[%emt 0:01:18]} 24. Nxa4 {[%emt 0:05:04]} bxa4 {[%emt 0:01:14]} 25. Nd2 {[%emt 0:02:20]} Qxc2 {[%emt 0:00:34]} 26. Nf1 {[%emt 0:00:10]} Qxb2 {[%emt 0:01:04]} 27. Rh3 $2 {[%emt 0:00:35]} (27. Be2 {was worth a try.}) 27... Qxa3 {[%emt 0:02:35]} 28. Rb1 {[%emt 0:01:37]} Bc6 {[%emt 0:01:27] Black is clearly winning.} ({Not} 28... Qd3 $2 29. Rd1 Qb3 30. Be2 $19) 29. Ng3 {[%emt 0:00:04]} Qe3 {[%emt 0:00:15] And now ...a3 would win.} 30. Qh5 {[%emt 0:01:45]} Rgf8 {[%emt 0:02:30]} 31. Be2 {[%emt 0:00:25]} a3 {[%emt 0:00:31]} 32. Bc4 {[%emt 0:00:21]} Rb8 {[%emt 0:01:15]} 33. Rf1 {[%emt 0:00:42]} Rb2 {[%emt 0:01:37]} 34. Qg4 {[%emt 0:00:01]} Qg5 {[%emt 0:02:01]} 35. Qd1 {[%emt 0:00:37] [#]} Bxe4 $1 {[%emt 0:00:39]} 36. Rg1 {[%emt 0:00:00]} Bxf5 {[%emt 0:01:32]} 37. Nxf5 {[%emt 0:01:09]} Nxf5 {[%emt 0:00:11]} 38. Rxa3 {[%emt 0:00:06]} Rd8 {[%emt 0:01:05][%cal Od6d5] Hoping for ...d5!} 39. Bd5 {[%emt 0:01:40]} Nd4 {[%emt 0:01:40]} 40. Rg3 {[%emt 0:00:40]} Qf5 {[%emt 0:00:45]} 41. Bc4 {[%emt 0:32:35]} d5 {[%emt 0:32:04]} 42. Bxa6 {[%emt 0:01:02]} Rdb8 {[%emt 0:00:58] ...Rb1 would be deadly.} 43. Bd3 {[%emt 0:01:20] Wards off Rb1} e4 {[%emt 0:00:15]} 44. Ba6 {[%emt 0:00:02]} Qe5 {[%emt 0:00:15] Weighted Error Value: White=0.47/Black=0.11 (very precise)} 0-1

[Event "Israeli Team-ch 2023"]
[Site "Petah Tikva"]
[Date "2023.05.12"]
[Round "11.7"]
[White "Zanan, Evgeny"]
[Black "Navarro Guerrero, Pavel. E."]
[Result "*"]
[ECO "B08"]
[WhiteElo "2483"]
[BlackElo "2152"]
[Annotator "TA"]
[PlyCount "37"]
[EventDate "2023.01.13"]
[EventCountry "ISR"]
[SourceTitle "playchess.com"]
[Source "ChessBase"]
[SourceQuality "1"]
[TimeControl "40/5400+30:1800+30"]

{[%evp 14,24,54,31,63,6,8,7,45,53,57,39,38]} 1. d4 {[%emt 0:00:07]} g6 {[%emt 0:00:18]} 2. e4 {[%emt 0:00:15]} Bg7 {[%emt 0:00:07]} 3. Nf3 {[%emt 0:00:08]} d6 {[%emt 0:00:33]} 4. Be2 {[%emt 0:00:10]} Nf6 {[%emt 0:06:59]} 5. Nc3 {[%emt 0:01:37]} O-O {[%emt 0:00:25]} 6. O-O {[%emt 0:00:18]} c6 {[%emt 0:02:57]} 7. a4 {[%emt 0:06:22]} a5 {[%emt 0:06:44]} 8. h3 {[%emt 0:09:37]} Na6 {[%emt 0:02:11] B08: Pirc Defence: Classical System.} 9. e5 {[%emt 0:05:04]} (9. Be3 $14) 9... dxe5 $11 {[%emt 0:04:43]} 10. dxe5 {[%emt 0:04:41]} Nd5 {[%emt 0:00:22]} 11. Nxd5 {[%emt 0:07:34]} cxd5 {[%emt 0:00:41]} 12. c3 {[%emt 0:00:41]} Nc5 {[%emt 0:04:22] [#]   Weighted Error Value: White=0.29 (precise) /Black=0.22 (precise)} {Predecessor:} 13. Bf4 $146 b6 14. Nd4 Bb7 15. Bb5 e6 16. Qg4 Qc7 17. Rfe1 Ba6 18. Bh2 Bxb5 19. Nxb5 {½-½ Lopez Sanz,V-LLobet Reus,P (2158) Barcelona Sants op 03rd 2001} *

[Event "Israeli Team-ch 2023"]
[Site "Petah Tikva"]
[Date "2023.05.12"]
[Round "11.9"]
[White "Bronstein, Or"]
[Black "Alekseev, Evgeny"]
[Result "0-1"]
[ECO "D35"]
[WhiteElo "2447"]
[BlackElo "2575"]
[Annotator "TA"]
[PlyCount "112"]
[EventDate "2023.01.13"]
[EventCountry "ISR"]
[SourceTitle "playchess.com"]
[Source "ChessBase"]
[SourceQuality "1"]
[TimeControl "40/5400+30:1800+30"]

{[%evp 15,112,11,28,16,25,17,19,0,33,21,36,0,0,4,0,-5,18,-27,-25,-35,21,0,6,13,0,-114,-28,-28,-14,-15,-7,-14,-6,-16,-12,-19,-21,-28,7,0,6,0,0,0,0,-21,0,-23,0,-30,-20,-20,-15,-48,-40,-41,-37,-79,-85,-95,-112,-104,-70,-139,-127,-111,-125,-242,-256,-284,-239,-248,-239,-312,-142,-215,-166,-173,-184,-165,-71,-139,-134,-126,-127,-735,-695,-662,-604,-1262,-822,-816,-807,-785,-697,-697,-585,-29998,-29999]} 1. d4 {[%emt 0:00:45]} Nf6 {[%emt 0:00:13]} 2. c4 {[%emt 0:01:12]} e6 {[%emt 0:00:18]} 3. Nc3 {[%emt 0:02:08]} d5 {[%emt 0:02:52]} 4. cxd5 {[%emt 0:00:55]} exd5 {[%emt 0:00:55]} 5. Bg5 {[%emt 0:00:16]} c6 {[%emt 0:01:56]} 6. e3 {[%emt 0:01:36]} Be7 {[%emt 0:04:15]} 7. Bd3 {[%emt 0:00:16]} Nbd7 {[%emt 0:00:19]} 8. Nf3 {[%emt 0:03:20]} O-O {[%emt 0:03:12][%cal Of6e4] 8...Ne4 is the fancy move.} 9. h3 {[%emt 0:04:13] D35: Queen's Gambit Declined: Exchange Variation.} Ne4 {[%emt 0:14:53][%mdl 64] Discovered Attack} 10. Bf4 {[%emt 0:00:42]} (10. Nxe4 $2 {is the wrong capture.} dxe4 11. Bxe4 (11. Bxe7 $2 Qxe7 12. O-O exd3 $19) 11... Bxg5 $19) 10... Ndf6 {[%emt 0:04:01]} 11. Qc2 {[%emt 0:01:13] The position is equal.} Nxc3 {[%emt 0:12:48]} 12. bxc3 {[%emt 0:00:46]} c5 {[%emt 0:00:33]} 13. O-O {[%emt 0:14:33]} c4 {[%emt 0:03:35]} 14. Be2 {[%emt 0:00:14]} g6 {[%emt 0:00:31] [#]} 15. g4 $146 {[%emt 0:17:45]} ({Predecessor:} 15. Ne5 Nd7 16. Rfd1 Nxe5 17. dxe5 Qa5 18. Qb2 Ba3 19. Qd2 Be6 20. Bg5 b5 21. Bf6 {1-0 Finek,V (2211)-Sprenar,P (2302) CZE-ch U20 Kouty nad Desnou 2020 (8)}) 15... Be6 {[%emt 0:05:09]} 16. a4 {[%emt 0:05:36]} Ne4 {[%emt 0:11:21]} 17. Rab1 {[%emt 0:11:07]} Qc8 {[%emt 0:03:40]} ({Black should play} 17... b6 $15) 18. Ne5 {[%emt 0:02:42][%cal Oe5c4]} (18. Nd2 {simplifies} Nxd2 19. Qxd2 b6 20. Rb5) 18... Nd6 {[%emt 0:01:41]} 19. Bh6 {[%emt 0:11:25]} Re8 {[%emt 0:00:38]} 20. Kh2 {[%emt 0:02:05] [#]} (20. Bf3 $11 {remains equal.}) 20... Bf8 {[%emt 0:03:09]} (20... g5 $1 $17 {aiming for ...f6.} 21. f4 f6 22. Bxg5 fxg5) 21. Bf4 $11 {[%emt 0:01:06]} Kg7 {[%emt 0:04:24]} 22. Nf3 {[%emt 0:03:49]} f6 {[%emt 0:01:19]} 23. Nd2 {[%emt 0:00:08]} Bf7 {[%emt 0:04:46]} 24. Bg3 {[%emt 0:03:53]} Qc6 {[%emt 0:01:47]} 25. h4 {[%emt 0:00:30]} b6 {[%emt 0:00:30]} 26. Rbe1 {[%emt 0:02:23]} Re7 {[%emt 0:05:12]} 27. Rg1 {[%emt 0:00:30]} Kg8 {[%emt 0:00:30]} 28. Bf4 {[%emt 0:00:30]} Bg7 {[%emt 0:00:30]} 29. Bd1 {[%emt 0:00:30]} Rae8 {[%emt 0:00:30]} 30. Qc1 {[%emt 0:00:30]} a6 {[%emt 0:00:30]} 31. Bc2 {[%emt 0:04:19][%cal Oh4h5]} Rb7 {[%emt 0:06:42]} 32. Qd1 {[%emt 0:02:12]} Ne4 {[%emt 0:00:55]} 33. Nxe4 {[%emt 0:01:39]} dxe4 {[%emt 0:00:03]} 34. g5 {[%emt 0:01:20]} f5 $1 {[%emt 0:00:13]} 35. Qe2 {[%emt 0:00:36]} Bf8 {[%emt 0:00:58]} 36. Rg3 {[%emt 0:00:54][%cal Oh4h5]} Bd6 {[%emt 0:00:26]} 37. Bxd6 {[%emt 0:00:33]} Qxd6 {[%emt 0:00:02]} 38. Rb1 {[%emt 0:00:38]} Bd5 {[%emt 0:00:32] Threatens to win with ...f4.} 39. Kg1 {[%emt 0:00:23]} (39. Kh1 $1 $15) 39... Rf7 $17 {[%emt 0:02:14]} 40. Bd1 {[%emt 0:00:25]} Ref8 $36 {[%emt 0:01:39][%mdl 2048] ...f4 is the strong threat. Black is really pushing. Black has more active pieces.} 41. Rb2 {[%emt 0:13:47]} (41. Rg2 $17) 41... f4 $19 {[%emt 0:02:57]} 42. Rh3 {[%emt 0:01:01] [#]} b5 $1 {[%emt 0:11:16][%mdl 512]} 43. axb5 {[%emt 0:05:54]} axb5 {[%emt 0:00:24]} 44. Rh2 {[%emt 0:01:48]} Bc6 {[%emt 0:04:02]} (44... Ra7 $19 {is more deadly. White must now prevent ...Ra1.} 45. Rb1 f3) 45. Ra2 {[%emt 0:00:50]} (45. Qe1 $17 {was necessary.}) 45... Bd7 {[%emt 0:01:44]} 46. Qd2 {[%emt 0:04:21]} fxe3 {[%emt 0:03:26]} 47. Qxe3 {[%emt 0:00:01] White is weak on the light squares} Rf4 {[%emt 0:00:18]} (47... b4 $19 {and Black stays clearly on top. Strongly threatening ...b3.} 48. cxb4 Qxb4) 48. Ra7 {[%emt 0:05:06]} (48. h5 $142) 48... Bg4 $17 {[%emt 0:04:32]} 49. Bxg4 {[%emt 0:01:41]} Rxg4+ {[%emt 0:00:01]} 50. Kh1 $2 {[%emt 0:00:49][%mdl 8192] Loses the game.} (50. Rg2 $17 Rxh4 51. Qg3 Qxg3 52. Rxg3) 50... Qd5 $19 {[%emt 0:01:44] Hoping for ...Rf3.} 51. Rh3 {[%emt 0:00:21]} Rgf4 {[%emt 0:01:33][%cal Bg4f4,Bf4f2,Bf2f1][%mdl 32]} 52. Re7 {[%emt 0:00:40]} Rxf2 {[%emt 0:03:04] ( -> ...Qa8)} 53. Qxe4 {[%emt 0:00:32]} Rf1+ {[%emt 0:00:23]} 54. Kg2 {[%emt 0:00:01]} R8f2+ {[%emt 0:00:17]} 55. Kg3 {[%emt 0:00:05]} Rf3+ {[%emt 0:00:29]} 56. Kg4 {[%emt 0:00:56]} h5+ {[%emt 0:02:39] A cool game by Alekseev.   Weighted Error Value: White=0.49/Black=0.31} 0-1